bitfinex/quotes_SOLUSD_20220207
["timestamp","ask_amount","ask_price","bid_price","bid_amount"]
[1644240170667,43.81946037,118.58,118.5,26.6162349]
[1644240171766,43.81946037,118.58,118.5,14.4462349]
[1644240171966,43.81946037,118.58,118.5,14.6962349]
[1644240172668,56.47936037,118.58,118.49,12.6621]
[1644240172972,56.47936037,118.58,118.46,22.7233]
[1644240173170,22.5837,118.57,118.46,22.7233]
[1644240173371,43.75884727,118.56,118.46,22.7233]
[1644240173985,34.46654049,118.53,118.46,12.6652]
[1644240174172,34.46654049,118.53,118.45,22.6634]
[1644240176073,47.13244049,118.53,118.45,35.3296]
[1644240176476,47.13244049,118.53,118.45,12.6662]
[1644240176675,47.13244049,118.53,118.42,35.0398]
[1644240176876,47.76513359,118.51,118.42,22.8698]
[1644240177176,47.76513359,118.51,118.42,23.1198]
[1644240177377,47.76513359,118.51,118.42,24.9127359]
[1644240177981,60.43293359,118.51,118.43,12.6675]
[1644240179881,60.43293359,118.51,118.43,14.7104359]
[1644240180883,47.76513359,118.51,118.43,14.7104359]
[1644240183188,47.76513359,118.51,118.43,23.1994359]
[1644240183391,47.76513359,118.51,118.43,47.81976188]
[1644240183590,47.76513359,118.51,118.43,53.81976188]
[1644240184200,47.76513359,118.51,118.43,47.81976188]
[1644240184595,12.6649,118.54,118.43,47.81976188]
[1644240184798,12.6628,118.56,118.43,58.03876188]
[1644240184996,12.6628,118.56,118.44,24.5729]
[1644240185220,12.6628,118.56,118.45,12.17]
[1644240185414,12.6628,118.56,118.47,12.6623]
[1644240185615,37.75618924,118.55,118.47,12.6623]
[1644240185814,37.75618924,118.55,118.47,12.9123]
[1644240186017,37.75618924,118.55,118.48,12.17]
[1644240187115,37.75618924,118.55,118.48,18.17]
[1644240187916,37.75618924,118.55,118.5,12.6608]
[1644240188720,37.75618924,118.55,118.5,14.7037359]
[1644240189019,23.235,118.57,118.5,14.7037359]
[1644240189221,23.2422,118.6,118.5,14.7037359]
[1644240189417,47.4582,118.6,118.5,14.4537359]
[1644240189618,47.4582,118.6,118.5,12.6608]
[1644240190020,41.6504649,118.59,118.5,12.6608]
[1644240190220,38.0116585,118.56,118.5,12.6608]
[1644240195423,50.6734585,118.56,118.5,12.6608]
[1644240197023,50.6734585,118.56,118.48,25.0209359]
[1644240197024,50.6734585,118.56,118.49,12.6622]
[1644240200030,50.6734585,118.56,118.48,12.6632]
[1644240200331,50.6734585,118.56,118.45,56.1724359]
[1644240200527,24.4024,118.55,118.45,44.0024359]
[1644240200727,59.47704946,118.54,118.45,50.0024359]
[1644240201028,59.47704946,118.54,118.43,82.44006432]
[1644240201029,59.47704946,118.54,118.43,24.98384468]
[1644240201330,40.05889473,118.52,118.44,12.6675]
[1644240201930,52.72479473,118.52,118.44,12.6675]
[1644240202129,52.72479473,118.52,118.44,14.4604359]
[1644240202528,40.05889473,118.52,118.44,14.4604359]
[1644240204232,40.05889473,118.52,118.44,26.6304359]
[1644240204630,40.05889473,118.52,118.44,26.8804359]
[1644240205036,24.2175,118.53,118.44,26.8804359]
[1644240205933,69.94312614,118.53,118.44,26.8804359]
[1644240206934,69.94312614,118.53,118.44,41.66866211]
[1644240207132,22.573,118.55,118.44,51.88766211]
[1644240207334,22.573,118.55,118.45,10.20041611]
[1644240207533,22.573,118.55,118.48,12.6598]
[1644240207736,22.573,118.55,118.48,25.0798]
[1644240207932,1.2044947,118.59,118.49,1.7929359]
[1644240208134,47.41849005,118.57,118.49,1.7929359]
[1644240208334,47.41849005,118.57,118.49,2.0429359]
[1644240208733,47.41849005,118.57,118.5,1.7929359]
[1644240209134,47.41849005,118.57,118.5,2.0429359]
[1644240209334,47.41849005,118.57,118.51,12.659]
[1644240209835,47.41849005,118.57,118.5,1.7929359]
[1644240210034,47.41849005,118.57,118.48,1.7929359]
[1644240210248,36.12123799,118.55,118.46,1.18234468]
[1644240210435,36.12123799,118.55,118.45,23.95574468]
[1644240210833,36.12123799,118.55,118.45,22.7734]
[1644240211035,34.84873765,118.53,118.45,22.7734]
[1644240211234,47.51413765,118.53,118.46,12.6652]
[1644240213941,34.84873765,118.53,118.47,1.7929359]
[1644240214140,34.84873765,118.53,118.48,12.6623]
[1644240215141,34.84873765,118.53,118.47,1.7929359]
[1644240215940,34.84873765,118.53,118.47,14.4575359]
[1644240216942,47.51373765,118.53,118.47,14.4575359]
[1644240217446,47.51373765,118.53,118.47,1.7929359]
[1644240217742,47.51373765,118.53,118.46,12.6658]
[1644240220645,34.84873765,118.53,118.46,14.7087359]
[1644240222548,35.2334,118.55,118.46,14.7087359]
[1644240222847,22.5706,118.55,118.46,14.7087359]
[1644240223047,35.2333,118.55,118.46,14.7087359]
[1644240223448,38.83317855,118.54,118.46,14.7087359]
[1644240225049,51.49697855,118.54,118.46,14.7087359]
[1644240227846,51.49697855,118.54,118.46,14.4587359]
[1644240228047,51.49697855,118.54,118.46,12.6658]
[1644240229550,51.49697855,118.54,118.46,14.7087359]
[1644240233863,51.49697855,118.54,118.46,14.4587359]
[1644240234085,51.49697855,118.54,118.45,12.6657]
[1644240235489,51.49697855,118.54,118.45,12.9157]
[1644240235688,38.83317855,118.54,118.45,14.71944635]
[1644240237088,51.49677855,118.54,118.45,14.71944635]
[1644240237689,51.49677855,118.54,118.45,12.9157]
[1644240238490,51.49677855,118.54,118.45,12.6657]
[1644240239090,52.70127325,118.54,118.45,12.6657]
[1644240239490,51.49677855,118.54,118.45,12.9157]
[1644240241291,51.49677855,118.54,118.45,12.6657]
[1644240241491,52.70127325,118.54,118.45,12.6657]
[1644240241691,23.2642,118.53,118.45,12.9157]
[1644240241891,47.17095662,118.52,118.45,12.9157]
[1644240242892,47.17095662,118.52,118.45,12.6657]
[1644240243295,47.17095662,118.52,118.45,12.9157]
[1644240248199,59.83655662,118.52,118.45,12.9157]
[1644240248500,59.83655662,118.52,118.43,1.18234468]
[1644240248697,23.7254,118.51,118.42,4.219]
[1644240248897,35.33004937,118.5,118.41,48.69424468]
[1644240249097,23.7254,118.49,118.41,48.69424468]
[1644240249298,39.14108125,118.48,118.41,48.69424468]
[1644240249497,12.6676,118.51,118.42,12.6691]
[1644240249698,25.9653947,118.54,118.42,14.10144468]
[1644240249897,25.9653947,118.54,118.43,24.5561]
[1644240250298,25.9653947,118.54,118.43,24.8061]
[1644240250498,12.6658,118.52,118.44,12.6669]
[1644240250697,45.44995354,118.51,118.44,12.6669]
[1644240251898,58.11735354,118.51,118.44,12.6669]
[1644240252499,70.61835354,118.51,118.43,37.2242]
[1644240252699,70.61835354,118.51,118.43,24.5561]
[1644240253398,70.61835354,118.51,118.41,24.629]
[1644240253604,24.5892,118.5,118.39,13.35234468]
[1644240253800,12.6722,118.47,118.38,13.63374468]
[1644240254001,12.6722,118.47,118.36,5.40234468]
[1644240254002,35.97825207,118.46,118.36,5.40234468]
[1644240254202,72.73745207,118.46,118.36,5.40234468]
[1644240254604,76.08877534,118.46,118.36,4.22]
[1644240254803,12.6763,118.43,118.36,4.22]
[1644240255002,38.132029,118.42,118.33,1.18234468]
[1644240255202,60.736029,118.42,118.33,1.18234468]
[1644240255401,60.736029,118.42,118.32,59.82964468]
[1644240255602,60.736029,118.42,118.32,58.8973]
[1644240255802,60.736029,118.42,118.33,12.6776]
[1644240256206,73.413529,118.42,118.31,13.35234468]
[1644240256704,73.413529,118.42,118.31,12.17]
[1644240256904,73.413529,118.42,118.31,24.8492]
[1644240258310,73.413529,118.42,118.31,49.3942]
[1644240259112,50.809529,118.42,118.31,49.3942]
[1644240259319,50.809529,118.42,118.31,49.6442]
[1644240260737,45.75469413,118.4,118.31,49.6442]
[1644240261739,45.75469413,118.4,118.31,49.3942]
[1644240261937,58.43409413,118.4,118.31,49.3942]
[1644240262138,58.43409413,118.4,118.31,37.2242]
[1644240263140,58.43409413,118.4,118.31,24.545]
[1644240263943,58.43409413,118.4,118.3,12.6811]
[1644240264540,44.17383465,118.38,118.3,12.6811]
[1644240264740,56.85583465,118.38,118.3,12.6811]
[1644240265341,53.46916979,118.38,118.3,12.6811]
[1644240266145,53.46916979,118.38,118.29,22.7729]
[1644240266343,53.46916979,118.38,118.29,0.2]
[1644240267044,53.46916979,118.38,118.26,1.2829593]
[1644240267045,24.5454,118.37,118.26,1.4829593]
[1644240267343,43.12982852,118.34,118.26,1.4829593]
[1644240267945,43.12982852,118.34,118.26,14.1672593]
[1644240268246,43.12982852,118.34,118.27,0.2]
[1644240269845,43.12982852,118.34,118.27,12.8841]
[1644240270045,43.12982852,118.34,118.28,0.2]
[1644240271246,43.12982852,118.34,118.28,12.8829]
[1644240271447,22.8551,118.35,118.29,0.2]
[1644240272550,66.03636133,118.35,118.26,0.2]
[1644240272750,77.60536133,118.35,118.26,0.2]
[1644240273950,77.60536133,118.35,118.25,0.2]
[1644240274553,90.29046133,118.35,118.25,0.2]
[1644240275653,90.29046133,118.35,118.24,0.2]
[1644240277153,90.29046133,118.35,118.24,12.8874]
[1644240277352,90.29046133,118.35,118.25,0.2]
[1644240278055,39.80330147,118.33,118.25,0.2]
[1644240278254,34.34179814,118.31,118.21,6.24642064]
[1644240278553,45.84691519,118.29,118.21,6.04642064]
[1644240278754,45.84691519,118.29,118.21,6.24642064]
[1644240279856,45.84691519,118.29,118.21,2.02042064]
[1644240280159,45.84691519,118.29,118.21,14.71052064]
[1644240280359,45.84691519,118.29,118.22,0.2]
[1644240280758,45.84691519,118.29,118.22,2.02042064]
[1644240282960,45.84691519,118.29,118.22,0.2]
[1644240286763,45.84691519,118.29,118.21,0.2]
[1644240290968,58.53831519,118.29,118.21,0.2]
[1644240291170,41.47306253,118.27,118.21,0.2]
[1644240291369,51.66906253,118.27,118.21,0.2]
[1644240292972,64.36256253,118.27,118.21,0.2]
[1644240295995,38.52553517,118.25,118.19,0.3]
[1644240297999,38.52553517,118.25,118.18,1.2829593]
[1644240298498,38.19296164,118.25,118.18,1.2829593]
[1644240298698,48.31420982,118.23,118.18,1.2829593]
[1644240298898,61.01230982,118.23,118.18,1.2829593]
[1644240300101,48.31420982,118.23,118.18,1.2829593]
[1644240301809,12.17,118.26,118.18,1.2829593]
[1644240302008,24.2235,118.27,118.18,13.7529593]
[1644240302219,24.7765,118.28,118.19,2.01589107]
[1644240302413,12.6922,118.29,118.19,12.11589107]
[1644240302612,104.51908509,118.32,118.2,0.3]
[1644240302814,44.28594298,118.28,118.2,24.5027]
[1644240303009,44.28594298,118.28,118.21,0.2]
[1644240304811,56.97814298,118.28,118.21,0.2]
[1644240305020,56.97814298,118.28,118.2,0.1]
[1644240305235,64.92714298,118.28,118.19,0.3]
[1644240305415,64.92714298,118.28,118.17,113.6875637]
[1644240305416,64.92714298,118.28,118.18,0.3]
[1644240305612,41.40958813,118.26,118.18,0.3]
[1644240306814,54.10498813,118.26,118.18,0.3]
[1644240307014,66.27498813,118.26,118.17,0.3]
[1644240307213,66.27498813,118.26,118.13,1.1875637]
[1644240307214,44.98967705,118.24,118.16,0.1]
[1644240307418,70.25767705,118.24,118.13,1.1875637]
[1644240308216,12.7001,118.23,118.12,1.4875637]
[1644240308417,46.61142323,118.22,118.12,1.4875637]
[1644240308616,46.61142323,118.22,118.12,7.4875637]
[1644240308816,46.61142323,118.22,118.12,6.3]
[1644240309217,46.61142323,118.22,118.12,0.3]
[1644240310120,37.47123288,118.19,118.12,0.3]
[1644240311922,50.17293288,118.19,118.12,0.3]
[1644240313741,62.34293288,118.19,118.12,0.3]
[1644240313940,73.99593288,118.19,118.12,0.3]
[1644240314943,62.34293288,118.19,118.12,0.3]
[1644240317546,74.69393288,118.19,118.09,12.7039]
[1644240317748,74.69393288,118.19,118.08,1.7626431]
[1644240317749,34.51433751,118.17,118.08,1.7626431]
[1644240317947,43.9671949,118.14,118.08,0.36397384]
[1644240318149,54.0,118.13,118.07,0.19673028]
[1644240318346,41.60208331,118.12,118.07,0.19673028]
[1644240318746,97.0,118.11,118.05,0.54888299]
[1644240319056,40.94295927,118.1,118.05,0.54888299]
[1644240319647,53.11295927,118.1,118.05,0.54888299]
[1644240320047,110.0,118.09,118.04,0.6232366]
[1644240320258,35.3615875,118.08,118.0,0.42356506]
[1644240320456,47.7865875,118.08,118.0,0.42356506]
[1644240320658,36.74279482,118.06,118.0,0.42356506]
[1644240320959,39.6730513,118.04,117.95,0.0006]
[1644240321155,48.2020513,118.04,117.95,0.0006]
[1644240321356,48.2020513,118.04,117.94,5.73528]
[1644240321654,48.2020513,118.04,117.96,1.82127899]
[1644240321655,60.3720513,118.04,117.96,1.82127899]
[1644240322255,48.2020513,118.04,117.96,1.82127899]
[1644240322859,39.6730513,118.04,117.96,1.82127899]
[1644240324057,52.3930513,118.04,117.96,1.82127899]
[1644240324256,64.5630513,118.04,117.94,7.55655899]
[1644240324657,64.5630513,118.04,117.94,5.73528]
[1644240324957,64.5630513,118.04,117.95,14.54067899]
[1644240325156,39.6730513,118.04,117.95,14.54067899]
[1644240326159,64.5625513,118.04,117.94,5.73528]
[1644240327156,64.5625513,118.04,117.94,18.45578]
[1644240327357,51.8430513,118.04,117.95,1.82127899]
[1644240328657,51.8430513,118.04,117.95,14.54037899]
[1644240329258,51.8430513,118.04,117.95,12.7191]
[1644240329858,51.8430513,118.04,117.96,1.82127899]
[1644240330060,51.8430513,118.04,117.96,14.53877899]
[1644240330258,39.6730513,118.04,117.96,14.53877899]
[1644240331062,39.6730513,118.04,117.94,14.54097899]
[1644240331663,39.6730513,118.04,117.94,14.79097899]
[1644240331960,39.6730513,118.04,117.94,26.96097899]
[1644240333362,39.6730513,118.04,117.94,31.19797899]
[1644240335663,39.6730513,118.04,117.94,32.96097899]
[1644240336063,60.6131,118.07,117.94,32.96097899]
[1644240336264,60.6131,118.07,117.94,37.19797899]
[1644240337064,45.82164497,118.06,117.94,37.19797899]
[1644240341068,45.82164497,118.06,117.94,38.38554269]
[1644240341668,45.82164497,118.06,117.94,32.96097899]
[1644240341868,45.82164497,118.06,117.94,32.71097899]
[1644240342870,47.8955,118.07,117.94,32.71097899]
[1644240343070,6.22411,118.06,117.94,32.71097899]
[1644240343271,6.22411,118.06,117.95,1.1875637]
[1644240343470,6.22411,118.06,117.98,12.7138]
[1644240343670,6.22411,118.06,118.04,1.69]
[1644240344268,6.22411,118.06,118.05,1.82127899]
[1644240344869,23.513,118.14,118.05,14.52967899]
[1644240345070,41.72491478,118.13,118.05,26.69967899]
[1644240347370,23.2806,118.16,118.06,1.82127899]
[1644240347571,23.2806,118.16,118.08,12.705]
[1644240348376,46.51211919,118.15,118.08,12.705]
[1644240349174,46.51211919,118.15,118.06,1.82127899]
[1644240349373,46.51211919,118.15,118.06,14.52817899]
[1644240349776,12.17,118.14,118.04,1.69]
[1644240349974,37.27838058,118.13,118.04,1.69]
[1644240350176,37.78276089,118.11,118.04,1.69]
[1644240350474,50.49736089,118.11,118.04,1.69]
[1644240352675,37.78276089,118.11,118.04,1.69]
[1644240353077,37.78276089,118.11,118.04,3.51127899]
[1644240353778,37.78276089,118.11,118.04,1.69]
[1644240354010,37.78276089,118.11,118.04,14.4]
[1644240354178,37.78276089,118.11,118.04,1.69]
[1644240355377,50.49426089,118.11,118.04,1.69]
[1644240355779,52.64108946,118.11,118.04,1.69]
[1644240356178,50.49426089,118.11,118.04,1.69]
[1644240360382,37.78276089,118.11,118.04,1.69]
[1644240360784,37.78276089,118.11,118.04,3.51662254]
[1644240361985,37.78276089,118.11,118.04,14.4003]
[1644240365190,50.49406089,118.11,118.04,14.4003]
[1644240365593,50.49406089,118.11,118.04,1.69]
[1644240367496,51.69744598,118.11,118.04,1.69]
[1644240367896,1.20338509,118.1,118.04,1.69]
[1644240368095,60.2876103,118.09,118.04,1.69]
[1644240369118,62.43443887,118.09,118.04,1.1224]
[1644240369523,119.0,118.08,117.97,12.7171]
[1644240369719,12.7178,118.05,117.97,12.7171]
[1644240369919,39.93478191,118.04,117.97,12.7171]
[1644240370119,39.93478191,118.04,117.96,37.4346]
[1644240370320,39.93478191,118.04,117.96,18.95283]
[1644240370926,52.65398191,118.04,117.96,12.7192]
[1644240372621,63.29498191,118.04,117.96,12.7192]
[1644240373626,52.65398191,118.04,117.96,12.7192]
[1644240373825,12.7175,118.05,117.96,12.7192]
[1644240374030,24.1712,118.07,117.96,12.7192]
[1644240374823,35.78111,118.06,117.96,12.7192]
[1644240375023,48.49751,118.06,117.96,12.7192]
[1644240378828,48.49751,118.06,117.96,14.54115284]
[1644240380732,12.715,118.08,117.99,12.7148]
[1644240380940,23.0504,118.09,117.99,34.4278]
[1644240381135,23.9464,118.1,118.0,1.82195284]
[1644240381336,1.20338509,118.13,118.01,12.17]
[1644240381535,1.20338509,118.13,118.01,36.1142]
[1644240381838,44.92540765,118.12,118.03,12.7101]
[1644240382040,44.92540765,118.12,118.03,25.8471]
[1644240382235,44.92540765,118.12,118.03,27.66905284]
[1644240382935,44.92540765,118.12,118.03,39.83905284]
[1644240385238,43.42540765,118.12,118.03,39.83905284]
[1644240391047,43.42540765,118.12,118.03,38.0171]
[1644240392646,56.13560765,118.12,118.03,38.0171]
[1644240392848,56.13560765,118.12,118.03,12.17]
[1644240393050,56.13560765,118.12,118.02,12.7126]
[1644240393850,56.09049168,118.12,118.02,12.7126]
[1644240394457,80.52339168,118.12,118.02,12.7126]
[1644240397475,37.1431,118.12,118.02,12.7126]
[1644240398276,37.1431,118.12,118.02,14.53455284]
[1644240399780,37.1431,118.12,118.02,27.50555284]
[1644240399984,37.1431,118.12,118.02,38.1036]
[1644240400178,24.4329,118.12,118.02,38.1036]
[1644240400384,22.5616,118.14,118.02,38.1036]
[1644240400579,22.5616,118.14,118.02,42.3376]
[1644240401680,22.5616,118.14,118.02,38.1036]
[1644240402284,22.5616,118.14,118.02,24.8826]
[1644240402484,23.76498509,118.14,118.02,12.7126]
[1644240402682,48.64338509,118.14,118.02,12.7126]
[1644240402879,1.20338509,118.12,118.02,12.7126]
[1644240403080,1.20338509,118.12,118.0,35.3299]
[1644240404082,12.7134,118.1,118.0,35.3299]
[1644240404482,1.20338509,118.11,118.0,47.4999]
[1644240404682,1.20338509,118.12,118.0,47.4999]
[1644240404885,25.38638509,118.13,118.0,47.4999]
[1644240405084,38.09528509,118.13,118.01,4.234]
[1644240405282,38.09528509,118.13,118.03,12.7108]
[1644240405483,38.09528509,118.13,118.03,24.8808]
[1644240406884,38.09528509,118.13,118.03,25.1308]
[1644240406885,25.38638509,118.13,118.03,25.1308]
[1644240407084,24.183,118.13,118.03,25.1308]
[1644240407285,24.183,118.13,118.03,37.98548404]
[1644240407491,1.20338509,118.14,118.03,37.98548404]
[1644240407687,1.20338509,118.14,118.04,23.0348]
[1644240407886,1.20338509,118.14,118.07,12.7058]
[1644240408188,1.20338509,118.15,118.07,12.7058]
[1644240410988,1.20338509,118.14,118.07,12.7058]
[1644240412591,1.20338509,118.14,118.07,14.80371254]
[1644240414093,1.20338509,118.15,118.07,14.80371254]
[1644240414292,1.20338509,118.14,118.07,14.80371254]
[1644240414493,1.20338509,118.15,118.07,14.80371254]
[1644240420796,1.20338509,118.15,118.07,12.98176158]
[1644240421196,1.20338509,118.15,118.07,14.80371254]
[1644240425601,13.91018509,118.15,118.07,12.98176158]
[1644240425802,1.20338509,118.14,118.07,0.27596158]
[1644240426999,13.91108509,118.14,118.07,12.98356158]
[1644240427402,1.20338509,118.13,118.07,12.98356158]
[1644240427801,13.91108509,118.14,118.07,12.98356158]
[1644240431505,1.20338509,118.14,118.07,12.98356158]
[1644240431907,1.20338509,118.13,118.07,12.98356158]
[1644240432110,1.20338509,118.14,118.07,12.98356158]
[1644240432710,1.20338509,118.14,118.07,14.80551254]
[1644240434213,1.20338509,118.13,118.07,12.98356158]
[1644240436939,1.20338509,118.13,118.07,0.27596158]
[1644240437143,1.20338509,118.12,118.07,0.27596158]
[1644240437739,1.20338509,118.11,118.07,0.27596158]
[1644240437941,1.20338509,118.1,118.07,0.27596158]
[1644240438140,6.06439994,118.09,118.07,0.27596158]
[1644240444243,37.77498509,118.12,118.07,0.27596158]
[1644240445042,1.20338509,118.11,118.07,0.27596158]
[1644240445743,25.06558509,118.12,118.07,0.27596158]
[1644240446344,23.8622,118.12,118.07,0.27596158]
[1644240446745,23.8622,118.12,118.07,12.98356158]
[1644240449348,24.26148509,118.14,118.07,12.98356158]
[1644240449548,23.0581,118.14,118.07,26.97085173]
[1644240453251,25.20378509,118.15,118.07,26.97085173]
[1644240453753,25.20378509,118.15,118.07,27.22085173]
[1644240453952,24.0004,118.15,118.07,27.22085173]
[1644240456154,1.20338509,118.16,118.07,27.22085173]
[1644240456359,1.20338509,118.17,118.07,50.72995173]
[1644240456557,1.20338509,118.19,118.08,189.7791583]
[1644240456756,1.20338509,118.21,118.11,12.6962]
[1644240456956,1.20338509,118.21,118.12,12.17]
[1644240457155,1.20338509,118.22,118.12,31.02468404]
[1644240457356,1.20338509,118.22,118.13,156.31]
[1644240457558,1.20338509,118.23,118.14,12.17]
[1644240457756,1.20338509,118.23,118.15,4.23]
[1644240457955,1.20338509,118.23,118.16,12.17]
[1644240458157,539.66100058,118.24,118.16,13.98725375]
[1644240458357,1.20338509,118.25,118.16,14.23725375]
[1644240458558,1.20338509,118.25,118.17,1.81725375]
[1644240458758,1.20338509,118.25,118.18,12.17]
[1644240458960,1.20338509,118.25,118.2,12.691]
[1644240459159,1.20338509,118.26,118.2,12.691]
[1644240459960,1.20338509,118.26,118.16,54.75956158]
[1644240460159,1.20338509,118.24,118.16,0.27596158]
[1644240460762,1.20338509,118.25,118.16,0.27596158]
[1644240461564,1.20338509,118.24,118.16,12.44596158]
[1644240461962,1.20338509,118.24,118.16,25.14326158]
[1644240462464,25.71698509,118.26,118.16,27.21051533]
[1644240463063,24.5136,118.26,118.16,27.21051533]
[1644240463264,1.20338509,118.27,118.16,27.21051533]
[1644240463663,24.73928509,118.28,118.16,27.21051533]
[1644240463864,1.20338509,118.27,118.16,27.21051533]
[1644240464069,24.78798509,118.27,118.16,51.30311533]
[1644240465363,23.5846,118.27,118.16,51.30311533]
[1644240466863,37.48148509,118.27,118.16,51.05311533]
[1644240467465,1.20338509,118.26,118.16,51.05311533]
[1644240467664,1.20338509,118.26,118.16,49.23586158]
[1644240468467,12.6966,118.25,118.16,49.23586158]
[1644240468665,12.6966,118.25,118.16,25.14326158]
[1644240468866,12.6966,118.25,118.16,0.27596158]
[1644240469069,24.9905,118.24,118.16,0.27596158]
[1644240469870,12.6986,118.23,118.16,0.27596158]
[1644240472669,23.2446,118.23,118.16,0.27596158]
[1644240472873,26.33292857,118.22,118.16,0.27596158]
[1644240473071,12.7026,118.21,118.16,0.27596158]
[1644240473271,14.84942857,118.21,118.16,0.27596158]
[1644240473569,3.35021366,118.2,118.16,0.27596158]
[1644240475073,13.90788509,118.19,118.16,0.27596158]
[1644240475270,6.06439994,118.18,118.16,0.00596158]
[1644240475474,100.0,118.17,118.08,12.17]
[1644240476071,112.7062,118.17,118.08,24.8759]
[1644240478879,12.7062,118.17,118.08,24.8759]
[1644240479080,13.90958509,118.17,118.08,24.8759]
[1644240479479,12.7062,118.17,118.08,24.8759]
[1644240479880,1.20338509,118.18,118.08,24.8759]
[1644240480079,62.22908509,118.19,118.08,24.8759]
[1644240482383,62.22908509,118.19,118.08,30.8759]
[1644240485710,62.22908509,118.19,118.08,31.1259]
[1644240486408,62.22908509,118.19,118.08,32.9386342]
[1644240486608,62.22908509,118.19,118.08,31.1259]
[1644240487810,62.22908509,118.19,118.08,32.9386342]
[1644240488610,1.20338509,118.18,118.08,30.8759]
[1644240488811,13.90658509,118.18,118.08,30.8759]
[1644240491416,23.8049,118.17,118.08,30.8759]
[1644240491615,36.5089,118.17,118.08,30.8759]
[1644240492715,37.71228509,118.17,118.08,24.8759]
[1644240492916,37.71228509,118.17,118.08,12.17]
[1644240493516,36.5089,118.17,118.08,12.17]
[1644240493922,37.71228509,118.17,118.08,12.17]
[1644240494118,25.00828509,118.17,118.08,24.8755]
[1644240494418,23.8049,118.17,118.09,1.8127342]
[1644240494620,23.8049,118.17,118.1,12.17]
[1644240494921,23.8049,118.17,118.1,12.42]
[1644240495118,23.8049,118.17,118.1,14.2327342]
[1644240495917,23.8049,118.17,118.11,12.7011]
[1644240497017,23.8049,118.17,118.11,24.8711]
[1644240498623,25.00828509,118.17,118.11,24.8711]
[1644240500224,1.20338509,118.16,118.11,24.8711]
[1644240500827,25.00828509,118.17,118.11,24.8711]
[1644240502224,1.20338509,118.16,118.11,24.8711]
[1644240504523,1.00338509,118.16,118.11,24.8711]
[1644240505125,23.8049,118.17,118.11,24.8711]
[1644240506330,24.6694,118.19,118.11,25.1211]
[1644240509630,25.50587017,118.21,118.11,25.1211]
[1644240509832,25.50587017,118.21,118.11,49.4799]
[1644240510030,23.0991,118.21,118.11,49.4799]
[1644240510231,23.0991,118.21,118.11,55.4799]
[1644240510433,2.40677017,118.22,118.11,57.2926342]
[1644240510634,4.8236147,118.23,118.11,57.2926342]
[1644240510832,4.8236147,118.23,118.11,72.30781472]
[1644240511032,51.32347017,118.24,118.11,224.38781472]
[1644240511237,48.9167,118.24,118.11,228.61881472]
[1644240511635,51.32347017,118.24,118.11,228.61881472]
[1644240512037,48.9167,118.24,118.11,228.61881472]
[1644240512237,23.9266,118.24,118.11,76.53881472]
[1644240512436,23.9266,118.24,118.12,152.08]
[1644240512736,22.7133,118.25,118.15,12.6933]
[1644240512939,22.7133,118.25,118.16,12.17]
[1644240513135,2.40677017,118.27,118.16,12.17]
[1644240513336,4.81939925,118.27,118.16,12.42]
[1644240513937,26.67212908,118.27,118.16,12.42]
[1644240514137,24.2595,118.27,118.16,12.42]
[1644240514338,24.2595,118.27,118.17,1.8127342]
[1644240514539,24.2595,118.27,118.18,12.17]
[1644240514740,24.2595,118.27,118.18,12.42]
[1644240514937,36.953,118.27,118.18,26.9257342]
[1644240517142,24.2595,118.27,118.18,26.9257342]
[1644240520241,24.8609,118.28,118.18,26.9257342]
[1644240520442,24.8609,118.28,118.18,49.8950342]
[1644240522344,24.8609,118.28,118.18,49.6450342]
[1644240522545,24.8609,118.28,118.18,47.8323]
[1644240522944,24.3786,118.27,118.18,47.8323]
[1644240524247,24.3786,118.27,118.18,48.0823]
[1644240524448,24.3786,118.27,118.18,47.8323]
[1644240526254,24.3786,118.27,118.18,48.0823]
[1644240526453,24.8609,118.28,118.18,49.8950342]
[1644240528284,23.7288,118.27,118.18,49.8950342]
[1644240535188,23.7288,118.27,118.18,49.6450342]
[1644240536788,23.7288,118.27,118.18,49.8950342]
[1644240538190,23.7288,118.27,118.18,49.6450342]
[1644240538589,23.7288,118.27,118.18,49.8950342]
[1644240541093,23.6288,118.27,118.18,49.8950342]
[1644240541494,23.1288,118.27,118.18,49.8950342]
[1644240542692,23.1288,118.27,118.18,26.9257342]
[1644240542892,35.8216,118.27,118.18,25.113]